Cogmind - Beta 16 @@@ ROGUE MODE // 2025.12.30 @ 23:37:20 Player: telemetry Result: Destroyed by Y-45 Defender with Heavy Assault Rifle Performance ------------- Evolutions (0) 0 Regions Visited (3) 600 Robots Destroyed (28) 140 Value Destroyed (632) 632 Prototype IDs (0) 0 Alien Tech Used (0) 0 Bonus (0) 0 TOTAL SCORE: 1372 Bonus ------- None Cogmind --------- Core Integrity 0/250 Matter 275/300 Energy 115/125 System Corruption 1% Temperature Cool (25) Movement Treading (260) Ox1 Location -8/Recycling Parts ------- > --- POWER (1) -------- Light Ion Engine > --- PROPULSION (2) --- Spiked Treads > --- UTILITY (2) ------ Medium Storage Unit Makeshift Light Armor Plating > --- WEAPON (2) ------- Subdweller Laser Heavy Battle Rifle > --- INVENTORY (10) --- Subdweller Power Source Subdweller Monowheel Hover Unit Hover Unit Sensor Array Small Laser Hammer Ripper Peak State ------------ > --- POWER ------------ Subdweller Power Source > --- PROPULSION ------- Light Treads Spiked Treads > --- UTILITY ---------- Medium Storage Unit Makeshift Light Armor Plating > --- WEAPON ----------- Subdweller Laser Heavy Battle Rifle > --- INVENTORY -------- Light Ion Engine Subdweller Power Source Subdweller Monowheel Hover Unit Hover Unit Sensor Array Small Laser Hammer Ripper [Rating: 17] Favorites ----------- Power Ion Engine Engine Ion Engine Propulsion Light Treads Treads Light Treads Wheel Wheel Utility Medium Storage Unit Device Sensor Array Storage Medium Storage Unit Processor Targeting Computer Protection Makeshift Light Armor Plating Weapon Beam Cannon Energy Gun Subdweller Laser Energy Cannon Beam Cannon Ballistic Gun Subdweller Machine Gun Impact Weapon Hammer Build | -11 -10 -10 -8 ------- Run | Yrd Mat Sub Rec Slots Evolved . | . . . . Power . | . . . . Propulsion . | . . . . Utility . | . . . . Weapon . | . . . . Parts Attached 23 | 6 6 9 2 Power 4 | 1 1 1 1 Engine 4 | 1 1 1 1 Core . | . . . . Reactor . | . . . . Propulsion 4 | 2 . 2 . Treads 3 | 2 . 1 . Leg . | . . . . Wheel 1 | . . 1 . Hover . | . . . . Flight . | . . . . Utility 5 | 1 3 1 . Device 1 | . 1 . . Storage 2 | 1 1 . . Processor 1 | . 1 . . Hackware . | . . . . Protection 1 | . . 1 . Artifact . | . . . . Weapon 10 | 2 2 5 1 Energy Gun 3 | 2 . 1 . Energy Cannon 3 | . 2 1 . Ballistic Gun 3 | . . 2 1 Ballistic Cannon . | . . . . Launcher . | . . . . Special Weapon . | . . . . Impact Weapon 1 | . . 1 . Slashing Weapon . | . . . . Piercing Weapon . | . . . . Special Melee Weapon . | . . . . Unidentified Prototypes . | . . . . Parts Lost 3 | . . 2 1 Power 1 | . . 1 . Propulsion 1 | . . . 1 Utility . | . . . . Weapon 1 | . . 1 . Highest Loss Streak 1 | . . 1 1 To Critical Strikes . | . . . . Average Backups 6 | 1 4 8 8 Power 1 | . 1 1 1 Propulsion 2 | . 1 3 3 Utility . | . . . 1 Weapon 2 | . 2 2 3 Tool/Special . | . . . . Unused Backups 7 | . 1 . 6 Power 1 | . . . 1 Propulsion 3 | . . . 3 Utility 1 | . 1 . . Weapon 2 | . . . 2 Tool/Special . | . . . . Average Slot Usage (%) 98 | . 99 97 97 Engine 13 | . 14 12 14 Treads 27 | . 28 26 26 Device 7 | . 4 13 . Storage 14 | . 14 14 14 Processor 4 | . 8 . . Protection 1 | . . . 14 Energy Gun 9 | . 9 7 14 Energy Cannon 15 | . 18 14 . Ballistic Gun 3 | . . 5 13 Peak Build Rating 17 | 6 7 15 17 Average Rating 8 | 4 6 10 16 On Entrance 7 | . 6 7 15 Avg Prop Armor Cover (%) 12 | . . 12 . Naked Turns . | . . . . Heaviest Build 27 | 13 22 27 27 Greatest Support 40 | 40 40 40 40 Greatest Overweight (x) 7 | 3 . 7 1 Average Overweight (x) . | . . . . Largest Inventory Capacity 10 | 8 10 10 10 Average Capacity 9 | 7 9 10 10 Most Carried 10 | 3 7 10 10 Average Carried 6 | 1 4 8 8 Final Capacity 10 | 8 10 10 10 Final Carried 10 | 3 7 10 8 Class Distribution -------------------- 100% | Mutant Dominant Class ---------------- Mutant | -10/Materials Mutant | -10/Subcaves Mutant | -8/Recycling Resources | -11 -10 -10 -8 ----------- Run | Yrd Mat Sub Rec Matter Collected 491 | 93 254 144 . Remotely . | . . . . Salvage Created 864 | . 556 308 . Parts 57 | . 34 23 . Haulers Intercepted 2 | . 2 . . Recyclers Shooed . | . . . . Parts Field Recycled . | . . . . Retrieved Matter . | . . . . Parts Self-Destructed 7 | . . 7 . Prevented . | . . . . Parts Restored . | . . . . Kills | -11 -10 -10 -8 ------- Run | Yrd Mat Sub Rec Combat Hostiles Destroyed 19 | . 10 9 . Guns 8 | . 4 4 . Cannons 11 | . 6 5 . Classes Destroyed 7 | . 5 2 . Builder 4 | . 4 . . Hauler 2 | . 2 . . Turret 2 | . . 2 . Watcher 1 | . 1 . . Swarmer 6 | . 2 4 . Grunt 8 | . 8 . . Subdweller 5 | . . 5 . Best Kill Streak 4 | . 2 4 . Combat Bots Only 4 | . 2 4 . Max Kills in Single Turn 1 | . 1 1 . Gunslinging . | . . . . Exploded . | . . . . Melee . | . . . . Uniques/NPCs Destroyed . | . . . . Combat | -11 -10 -10 -8 -------- Run | Yrd Mat Sub Rec Hostile Shots Fired 134 | . 31 91 12 Missed 46 | . 7 36 3 Hits 88 | . 24 55 9 Projectile 88 | . 24 55 9 Critical Strikes 1 | . . 1 . Damage Taken 1124 | . 228 760 136 Core 262 | . 28 220 14 Absorbed by Shields . | . . . . Core Remaining (%) 100 | 100 . . . Volleys Fired 82 | . 40 41 1 Largest 2 | . 2 2 2 Hottest 120 | . 120 120 93 Shots Fired 147 | . 81 64 2 Gun 77 | . 49 26 2 Cannon 70 | . 32 38 . Launcher . | . . . . Special . | . . . . Kinetic 7 | . . 6 1 Thermal 140 | . 81 58 1 Explosive . | . . . . Electromagnetic . | . . . . Robot Hit Streak 38 | . 10 38 4 Robot Miss Streak 3 | . 3 2 . Penetration Max . | . . . . Secondary Targets 1 | . . 1 . Max Gunslinging Chain 1 | . . 1 . Shots Hit Robots 103 | . 51 50 2 Core Hits 37 | . 20 17 . Critical Kills . | . . . . Critical Parts Destroyed 1 | . . 1 . Critical Strikes 2 | . 1 1 . Burn 1 | . 1 . . Destroy 1 | . . 1 . Melee Attacks . | . . . . Impact . | . . . . Slashing . | . . . . Piercing . | . . . . Sneak Attacks . | . . . . Combat Hostiles . | . . . . Follow-up Attacks . | . . . . Damage Inflicted 1752 | . 734 975 43 Guns 772 | . 364 365 43 Cannons 980 | . 370 610 . Explosions . | . . . . Melee . | . . . . Ramming . | . . . . Kinetic 105 | . . 83 22 Thermal 1647 | . 734 892 21 Explosive . | . . . . Electromagnetic . | . . . . Impact . | . . . . Slashing . | . . . . Piercing . | . . . . Highest Corruption 1 | . 1 1 1 Average Corruption 1 | . 1 1 1 Corruption Purged . | . . . . Corruption Blocked . | . . . . Effects 22 | . 13 6 3 Message Errors 4 | . 3 1 . Matter Fused 8 | . 4 3 1 Heat Flow Errors 2 | . 2 . . Energy Discharges 2 | . . . 2 Data Loss (minor) 2 | . 1 1 . Data Loss (major) 1 | . 1 . . Misfires 1 | . 1 . . Alerts 2 | . 1 1 . Overload Shots . | . . . . Overflow Damage . | . . . . Projectiles . | . . . . Explosions . | . . . . Melee . | . . . . Knockbacks . | . . . . Impact . | . . . . Kinetic . | . . . . Secondary . | . . . . Self-Inflicted Damage . | . . . . Shots . | . . . . Rammed . | . . . . Targets Rammed . | . . . . Kicked . | . . . . Crushed . | . . . . Highest Temperature 235 | . 235 20 16 Average Temperature 64 | . 72 10 16 Received Heat Transfer 321 | . 84 210 27 Siege Activations . | . . . . Martial Activations . | . . . . Shielding Activations . | . . . . Robots Disrupted . | . . . . Combat Hostiles . | . . . . Robots Corrupted . | . . . . Combat Hostiles . | . . . . Parts Fried . | . . . . Impact Corruptions . | . . . . Robots Melted . | . . . . Combat Hostiles . | . . . . Parts Melted 4 | . 4 . . Heat Transferred 3390 | . 1794 1571 25 Parts Sabotaged . | . . . . Parts Stolen . | . . . . Parts Stripped . | . . . . Power Chain Reactions . | . . . . Alert | -11 -10 -10 -8 ------- Run | Yrd Mat Sub Rec Maximum Alert Level . | . . . . Low Security (%) 100 | 100 100 . 100 Level 1 . | . . . . Level 2 . | . . . . Level 3 . | . . . . Level 4 . | . . . . Level 5 . | . . . . High Security . | . . . . Max Security . | . . . . Peak Influence 85 | . 66 . 85 Initial 85 | . . . 85 Average 19 | . 17 . 35 Influence Increases 547 | . 332 210 5 Destroy 0b10 Robot/C 320 | . 200 120 . Destroy 0b10 Robot/NC 35 | . 35 . . Destroy Leader 66 | . 66 . . Successful Hack 18 | . 13 . 5 Destroy Structure 3 | . 3 . . Lose Combat Pursuer 105 | . 15 90 . Influence Decreases 547 | . 307 57 183 Entered New Map 106 | . . 13 93 Time Decay 441 | . 307 44 90 Squads Dispatched 5 | . 5 . . Investigation 4 | . 4 . . Extermination . | . . . . Reinforcement 1 | . 1 . . Assault . | . . . . Garrison . | . . . . Intercept . | . . . . Searches Triggered . | . . . . Construction Impeded . | . . . . Haulers Reinforced . | . . . . Active Scanning Responses . | . . . . Cargo Convoy Interrupts . | . . . . Stealth | -11 -10 -10 -8 --------- Run | Yrd Mat Sub Rec Distress Signals . | . . . . Communications Jammed . | . . . . Distress Signals . | . . . . Times Spotted 26 | . 12 12 2 Peak Tracking Total 3 | . 3 3 2 Tactical Retreats 4 | . 1 3 . Traps | -11 -10 -10 -8 ------- Run | Yrd Mat Sub Rec Traps Triggered 3 | . 2 1 . Indirectly . | . . . . Trap Hack Attempts . | . . . . Triggered . | . . . . Disarmed . | . . . . Reprogrammed . | . . . . Reused . | . . . . Traps Extracted . | . . . . Installed . | . . . . Triggered . | . . . . Machines | -11 -10 -10 -8 ---------- Run | Yrd Mat Sub Rec Machines Disabled 2 | . . 2 . Max in Single Turn 1 | . . 1 . Machines Repaired . | . . . . Machines Dismantled . | . . . . Machines Sabotaged . | . . . . Overloaded Fab Kills . | . . . . Hacking | -11 -10 -10 -8 --------- Run | Yrd Mat Sub Rec Machines Accessed 8 | . 6 . 2 Terminals 7 | . 5 . 2 Fabricators . | . . . . Repair Stations . | . . . . Recycling Units 1 | . 1 . . Scanalyzers . | . . . . Garrison Access . | . . . . Total Hacks 26 | . 19 . 7 Successful 10 | . 8 . 2 Failed 15 | . 10 . 5 Catastrophic 4 | . 2 . 2 Database Lockouts 1 | . 1 . . Manual 21 | . 14 . 7 Terminals 24 | . 17 . 7 Fabricators . | . . . . Repair Stations . | . . . . Recycling Units 2 | . 2 . . Scanalyzers . | . . . . Garrison Access . | . . . . Terminal Hacks 4 | . 3 . 1 Robot Analysis 2 | . 2 . . Locate Traps 1 | . 1 . . Zone Layout 1 | . . . 1 Fabricator Hacks . | . . . . Repair Station Hacks . | . . . . Recycling Unit Hacks 1 | . 1 . . Report Inventory 1 | . 1 . . Scanalyzer . | . . . . Garrison Access Hacks . | . . . . Unauthorized Hacks 5 | . 4 . 1 Terminals 5 | . 4 . 1 Botnet 5 | . 4 . 1 Fabricators . | . . . . Repair Stations . | . . . . Recycling Units . | . . . . Scanalyzers . | . . . . Garrison Access . | . . . . Data Cores Recovered . | . . . . Used . | . . . . Hacking Detections 6 | . 4 . 2 Full Trace Events 4 | . 3 . 1 Feedback Events 1 | . 1 . . Corruption 1 | . 1 . . Feedback Blocked . | . . . . Robot Schematics Acquired . | . . . . Robots Built . | . . . . Authchips . | . . . . Time . | . . . . Total Robot Build Rating . | . . . . Part Schematics Acquired . | . . . . Parts Built . | . . . . Authchips . | . . . . Time . | . . . . Total Part Build Rating . | . . . . Part Studies Acquired . | . . . . Parts Repaired . | . . . . Time . | . . . . Parts Recycled . | . . . . Recycled Matter . | . . . . Retrieved Matter . | . . . . Retrieved Components . | . . . . Parts Scanalyzed . | . . . . Part Schematics Acquired . | . . . . Parts Damaged . | . . . . Bothacking | -11 -10 -10 -8 ------------ Run | Yrd Mat Sub Rec Used RIF Installer . | . . . . Robots Hacked . | . . . . Non-combat . | . . . . Combat . | . . . . Robot Hacks Applied . | . . . . Relay Couplers Released . | . . . . Fabnet Peak Effective % . | . . . . Robots Rewired . | . . . . Allies Hacked . | . . . . Hacks Repelled . | . . . . Allies | -11 -10 -10 -8 -------- Run | Yrd Mat Sub Rec Total Allies . | . . . . Largest Group . | . . . . Highest-Rated Group . | . . . . Highest-Rated Ally . | . . . . Total Orders . | . . . . Ally Attacks . | . . . . Total Damage . | . . . . Kills . | . . . . Allies Corrupted . | . . . . Allies Melted . | . . . . Intel | -11 -10 -10 -8 ------- Run | Yrd Mat Sub Rec Active Infowar (turns) 1272 | . 436 836 . Sensors 1272 | . 436 836 . Robot Analysis Total 2 | . 2 . . Derelict Logs Recovered 1 | . . 1 . Drone Launches . | . . . . Drone Recoveries . | . . . . Exploration | -11 -10 -10 -8 ------------- Run | Yrd Mat Sub Rec Turns Passed 2465 | 67 1294 864 240 Spaces Moved 1314 | 41 695 449 129 Core 21 | 16 . 5 . Treads 1252 | 25 695 403 129 Legs . | . . . . Wheels 41 | . . 41 . Hover . | . . . . Flight . | . . . . Fastest Speed 50 | 50 160 110 160 Average Speed 159 | 137 160 159 166 Slowest Speed 400 | 200 160 400 260 Overloaded Moves . | . . . . Propulsion Burnouts . | . . . . Robots Hopped . | . . . . Potential Cave-ins . | . . . . Cave-ins Triggered . | . . . . Exploration Rate (%) 40 | 4 92 29 36 Regions Visited 3 Branch Regions 2 Pre-discovered Areas . | . . . . Known Exits Taken . | . . . . Unknown Exits Taken 3 | 1 1 1 . Scrap Searched 7 | . . 7 . Spaces Dug . | . . . . Terrain Destroyed . | . . . . Melee . | . . . . Projectile . | . . . . AOE . | . . . . Terrain Rammed . | . . . . Walls Destroyed . | . . . . Machines Disabled . | . . . . Actions | -11 -10 -10 -8 --------- Run | Yrd Mat Sub Rec Total 1526 | 49 796 527 154 Wait 82 | . 47 15 20 Move 1311 | 40 694 448 129 Hop . | . . . . Pick Up 14 | 3 6 5 . Fast Attach 11 | 6 1 4 . Attach 4 | . . 2 2 Detach 1 | . . 1 . Swap 10 | . 5 5 . Drop 11 | . 3 6 2 Fire 82 | . 40 41 1 Melee . | . . . . Ram . | . . . . Kick . | . . . . Crush . | . . . . Escape Stasis . | . . . . Rewire . | . . . . Trap . | . . . . Miscellaneous . | . . . . Route ------- -11/Scrapyard -10/Materials (discovered 5 exits: [*Mat x2] / [*Min x2] / [*Sub]) -10/Subcaves -8/Recycling History --------- Turn | Location | Event 30 | -11/Scrapyard | Discovered new exit (range 15) 68 | -11/Scrapyard | Entered Materials 68 | -10/Materials | Discovered new exit (range 8) 69 | -10/Materials | Met a group of wandering Federalists 303 | -10/Materials | Build established: Mutant 523 | -10/Materials | Discovered new exit (range 15) 665 | -10/Materials | Central database locked down 983 | -10/Materials | Discovered new exit (range 3) 1045 | -10/Materials | Discovered new exit (range 8) 1149 | -10/Materials | Discovered new exit (range 12) 1362 | -10/Materials | Entered Subcaves 1363 | -10/Subcaves | Continued accompanying wandering Federalists (1) 1464 | -10/Subcaves | Core integrity fell below 50% 2176 | -10/Subcaves | Core integrity fell below 20% 2201 | -10/Subcaves | Discovered new exit (range 9) 2226 | -10/Subcaves | Entered Recycling 2466 | -8/Recycling | Destroyed by Y-45 Defender with Heavy Assault Rifle Last Messages --------------- 02284_ Connecting with Terminal... 02284_ Current location identified: Recycling >>Trojan(Botnet) Trojan loaded successfully. Testing... Terminal linked with 0 systems. Awaiting botnet instructions. >>Layout(Zone) Retrieving Zone 4E layout... Downloaded map data. 02299_ System corrupted: Matter fused (-7). 02301_ Sub. Power Source shoots sparks and powers down. 02312_ Dropped Broken Sub. Power Source. 02317_ R-06 Scavenger collects Broken Sub. Power Source. 02342_ Connecting with Terminal... 02432_ Y-45 Defender springs to life. 02435_ Lgt. Treads destroyed. 02452_ System corrupted: Energy discharge (-45). Map ----- +----------------------------------------------------+ | ?????????????????????????????????????? | | ?????????????????????????????????????? | | ?????????????????????????????????????? | | ?????????????????????????????????????? | | ?????????????????????????????????????? | | ?????????????????????????????????????? | | ?????????????????????????????????????? | | ?????????????????????????????????????? | | ?????????????????????????????????????? | | ?????????????????????????????????????? | | ?????????????????????????????????????? | | ?????????????????????????????????????? | | ?????????????????????????????????????? | | ?????????????????????????????????????? | | ?????????????????????????????????????? | | ?????????????????????????????????????? | | ?????????????????????????????????????? | | ?????????????????????????????????????? | | ??????????????#+#??????????#####?????? | | ??????????????# #?????????? #?????? | | ??????????????# #?????????? #?????? | | ??????????????# #?????????? #?????? | | ??????????????# #??????????# #?????? | | ??????????????# #??????????# ###???? | | ?????# ###### #??????????# ! #???? | | ?????# @Y #??????????# !!#???? | | ?????# ###### #?????????? !!????? | | ????????????### ###????????# ##????? | | ????????????# ########## #????? | | ????????????# #?????? | | ????????????# #?????? | | ????????????# #?????? | | ????????????# ########## #?????? | | ????????????#######????????# #?????? | | ????############ #?????????# #?????? | | ????# #?????????# #?????? | | ????# #????###### #???### | | ????# #????#===## #???#"" | | ????# ######===## #####"Y | | ????# # | | ????# + | | ????# # | | ????# ###+#+#########+##### | | ????# #?# ???# # | | ????# #?# #??# """ # | | ????# #?# #??# "T" # | | ????# #?# #??# " " # | | ????##############?# #??# # | | ???????????????????# #??# """ # | | ???????????????????# #??# """ # | +----------------------------------------------------+ Best States ------------- Heat Dissipation 25 Energy Generation 15 Energy Capacity 250 Matter Stores 300 Matter Capacity 300 Sight Range 16 Robot Scan Range 14 Terrain Scan Density 10 Armor Coverage 100 Evasion (%) 40 Targeting Accuracy 5 Recoil Reduction 2 Item Schematics ----------------- None Robot Schematics ------------------ None Fabricated ------------ Nothing Repaired ---------- Nothing Studied --------- None Alien Tech Used ----------------- None Achievements -------------- Quantum Hacking Strength In Numbers True Hacker Challenges ------------ None Game ------ Seed RagnarokPoweredMachine Manual? 0 Play Time 00:20:08 Cumulative 22.2 hours Start 2025.12.30 @ 23:18:55 End 2025.12.30 @ 23:37:20 Sessions 1 Manual Loads 0 Difficulty Rogue Special Mode None Game No. 21 Rogue 21 Adventurer 0 Explorer 0 Win Type - Total 0 Types 0/0/0/0/0/0/0/0/0/0 Lore% 24 Gallery% 21 Achievement% 19 Wizard Run 0 Options --------- Layout 1 ASCII 0 Keyboard 0 Movement Numpad Keybinds 0 Fullscreen 1 Font 24/Smallcaps Map View 50x40 Zoom Use 0% Tactical HUD 1 Map Filters NONE Filters NONE Steam 1 RUN: 7d2b8a07-ff37-4d28-9af5-13e4883ca24f